bitfinex-derivatives/quotes_ETHF0:USTF0_20241024
["timestamp","ask_amount","ask_price","bid_price","bid_amount"]
[1729775058414,0.3954,2531.2,2531.1,1.28946343]
[1729775061521,0.7247,2531.3,2531.1,1.28946343]
[1729775061522,0.7053,2531.6,2531.1,0.25518719]
[1729775061724,0.3954,2531.2,2531.1,0.39541]
[1729775062024,0.3954,2531.3,2531.1,3.60321]
[1729775062322,0.39538,2531.4,2531.3,0.39538]
[1729775063019,1.485,2531.6,2531.2,0.7278]
[1729775063325,0.39537,2531.4,2531.3,0.6963]
[1729775064320,0.39537,2531.4,2531.3,3.9041]
[1729775064624,0.39537,2531.4,2531.3,4.29948]
[1729775065516,0.39537,2531.4,2531.3,3.9041]
[1729775068329,0.39537,2531.4,2531.3,3.2078]
[1729775068517,0.39538,2531.3,2531.2,0.25243414]
[1729775068720,2.47336,2531.6,2531.0,6.38232]
[1729775069017,0.39542,2531.1,2531.0,6.38232]
[1729775069619,0.39542,2531.1,2531.0,5.9869]
[1729775069821,0.39542,2531.1,2531.0,3.9107]
[1729775070024,0.39542,2531.1,2531.0,4.30613]
[1729775070616,0.39542,2531.1,2531.0,4.56145557]
[1729775071226,0.39542,2531.1,2531.0,4.16602557]
[1729775071722,0.39542,2531.1,2531.0,3.46312557]
[1729775072326,0.39542,2531.1,2531.0,3.85855557]
[1729775072527,0.39542,2531.1,2531.0,3.46312557]
[1729775073927,0.39542,2531.1,2531.0,0.25532557]
[1729775074120,1.4664,2531.2,2530.9,0.7436]
[1729775074428,0.39543,2531.0,2530.9,3.2078]
[1729775076120,0.6899,2531.1,2530.8,1.10216]
[1729775076121,0.39545,2530.9,2530.8,1.10216]
[1729775076428,0.39545,2530.9,2530.8,4.30996]
[1729775076927,0.39545,2530.9,2530.8,4.56199879]
[1729775077834,0.39544,2531.0,2530.9,0.39544]
[1729775079226,0.39543,2531.1,2531.0,0.39542]
[1729775079428,0.39543,2531.1,2531.0,1.81022]
[1729775079739,0.39541,2531.2,2531.1,0.3954]
[1729775079928,0.39541,2531.2,2531.1,3.6032]
[1729775080227,0.39541,2531.2,2531.1,3.2078]
[1729775080433,0.39541,2531.2,2531.1,3.60322]
[1729775080824,0.39541,2531.2,2531.1,3.2078]
[1729775081023,0.39541,2531.2,2531.1,3.60322]
[1729775082426,0.39541,2531.2,2531.1,3.2078]
[1729775084231,4.34581,2531.2,2531.1,3.2078]
[1729775085535,0.39541,2531.2,2531.1,3.2078]
[1729775085929,4.34581,2531.2,2531.1,3.2078]
[1729775086136,0.39541,2531.2,2531.1,3.2078]
[1729775087625,4.34581,2531.2,2531.1,3.2078]
[1729775091741,0.39548,2530.7,2530.6,1.42976624]
[1729775091941,0.39548,2530.7,2530.6,1.55342583]
[1729775092246,0.39549,2530.6,2530.5,1.03427624]
[1729775092437,0.39549,2530.6,2530.5,1.15794468]
[1729775093235,0.39549,2530.6,2530.5,1.41060247]
[1729775094242,0.39549,2530.6,2530.5,3.49309953]
[1729775094836,0.39549,2530.6,2530.5,2.9779228]
[1729775095150,0.39549,2530.6,2530.5,1.41258282]
[1729775096239,0.39549,2530.6,2530.3,4.98755659]
[1729775096240,0.7494,2530.6,2530.3,4.98755659]
[1729775096440,0.39553,2530.4,2530.3,4.98755659]
[1729775096634,0.39553,2530.4,2530.3,5.1112316]
[1729775096940,0.39553,2530.4,2530.3,4.3677316]
[1729775097137,0.39553,2530.4,2530.3,4.36773382]
[1729775097342,0.39556,2530.2,2530.1,1.28461592]
[1729775097546,0.39556,2530.2,2530.1,0.37204526]
[1729775097741,0.39557,2530.1,2530.0,1.73995659]
[1729775098040,0.39557,2530.1,2530.0,1.86364723]
[1729775098241,0.39557,2530.1,2530.0,0.82739064]
[1729775099045,0.39557,2530.1,2530.0,1.07707971]
[1729775099237,0.39557,2530.1,2530.0,0.82739064]
[1729775099437,0.39557,2530.1,2530.0,0.7037]
[1729775099637,3.9528,2530.1,2529.9,4.92755659]
[1729775099835,0.39559,2530.0,2529.9,3.8913]
[1729775100051,0.39559,2530.0,2529.9,5.0512493]
[1729775100544,0.39559,2530.0,2529.9,3.2078]
[1729775101640,0.39562,2529.8,2529.7,0.24590058]
[1729775101836,0.39563,2529.7,2529.6,0.6836]
[1729775103647,0.39565,2529.6,2529.5,3.2078]
[1729775103840,0.39568,2529.4,2529.3,0.6935]
[1729775104044,0.39567,2529.5,2529.4,0.39567]
[1729775104245,0.39567,2529.5,2529.4,3.60347]
[1729775104549,0.39567,2529.5,2529.4,3.2078]
[1729775105053,0.39568,2529.4,2529.3,0.6935]
[1729775105653,0.39568,2529.4,2529.2,0.95021736]
[1729775105654,0.3957,2529.3,2529.2,0.95021736]
[1729775105850,0.3957,2529.3,2529.2,1.70191736]
[1729775106243,3.18985409,2529.8,2529.2,1.70191736]
[1729775106244,1.70928,2529.8,2529.2,1.70191736]
[1729775106446,0.39569,2529.4,2529.2,2.09761736]
[1729775106646,0.39569,2529.4,2529.3,0.3957]
[1729775107258,0.39568,2529.5,2529.3,0.3957]
[1729775107444,0.7202,2529.8,2529.2,1.70191736]
[1729775107650,0.7202,2529.8,2529.4,3.60347]
[1729775107947,0.39567,2529.5,2529.4,3.2078]
[1729775112654,0.39566,2529.6,2529.5,0.39566]
[1729775112855,0.39566,2529.6,2529.4,5.67745409]
[1729775112856,1.72784,2530.1,2529.7,0.39563]
[1729775113054,0.39562,2529.8,2529.7,3.2078]
[1729775113658,1.72784,2530.1,2529.7,3.2078]
[1729775113959,0.98891,2530.2,2529.7,3.2078]
[1729775114162,0.98891,2530.2,2529.8,0.39561]
[1729775114163,0.39561,2529.9,2529.8,0.39561]
[1729775114557,5.59567,2530.3,2529.8,0.39561]
[1729775114757,0.39561,2529.9,2529.8,0.39561]
[1729775115151,5.59567,2530.3,2529.7,3.2078]
[1729775115352,0.39559,2530.1,2530.0,0.39558]
[1729775115752,3.8979,2530.3,2529.8,2.46965409]
[1729775115958,0.3956,2530.0,2529.9,0.39559]
[1729775116159,0.3956,2530.0,2529.9,3.60339]
[1729775116757,0.39555,2530.3,2530.2,0.39555]
[1729775116957,0.39554,2530.3,2530.2,3.2078]
[1729775117156,0.98883,2530.4,2530.2,3.2078]
[1729775117352,0.39554,2530.3,2530.2,3.2078]
[1729775118560,0.39554,2530.3,2530.2,3.60336]
[1729775118755,0.39554,2530.3,2530.2,3.2078]
[1729775119156,4.34754,2530.3,2530.2,3.2078]
[1729775120660,0.39554,2530.3,2530.2,3.2078]
[1729775120962,4.34754,2530.3,2530.2,3.2078]
[1729775121265,0.39554,2530.3,2530.2,3.2078]
[1729775122054,0.39554,2530.3,2530.2,3.60336]
[1729775123082,0.39553,2530.4,2530.3,0.39553]
[1729775123378,0.7184,2530.7,2530.2,5.67745409]
[1729775123604,0.7184,2530.7,2530.5,3.2078]
[1729775123605,0.39549,2530.6,2530.5,3.2078]
[1729775124083,4.34749,2530.6,2530.5,3.60331]
[1729775124594,0.39549,2530.6,2530.5,3.60331]
[1729775124987,4.34749,2530.6,2530.5,3.60331]
[1729775125288,0.39549,2530.6,2530.5,3.60331]
[1729775125797,0.39549,2530.7,2530.6,0.39548]
[1729775126586,1.6682,2531.0,2530.5,3.2078]
[1729775126788,0.39549,2530.6,2530.5,3.2078]
[1729775127276,0.39549,2530.6,2530.5,4.33461]
[1729775127486,0.39549,2530.6,2530.5,4.18473996]
[1729775127988,0.39554,2530.3,2530.2,0.7313]
[1729775129194,2.44378,2530.5,2530.1,3.2078]
[1729775129406,0.39556,2530.2,2530.1,3.2078]
[1729775130981,4.34756,2530.2,2529.9,1.4297]
[1729775131189,0.98899,2530.0,2529.6,0.7103]
[1729775131479,0.39563,2529.7,2529.6,0.7103]
[1729775131678,0.39563,2529.7,2529.6,1.10595]
[1729775132584,1.73299,2530.0,2529.7,0.39563]
[1729775132585,0.39563,2529.8,2529.7,0.39563]
[1729775132786,0.39563,2529.8,2529.7,3.2078]
[1729775133290,0.39563,2529.8,2529.7,3.60343]
[1729775133493,0.744,2530.0,2529.7,3.2078]
[1729775133690,0.39562,2529.8,2529.7,3.60342]
[1729775133888,0.744,2530.0,2529.7,3.2078]
[1729775134090,0.39562,2529.9,2529.8,0.39561]
[1729775134486,0.39562,2529.9,2529.8,1.08561]
[1729775134687,0.39562,2529.9,2529.8,0.69]
[1729775134895,0.39562,2529.9,2529.8,1.08562]
[1729775135294,0.39562,2529.9,2529.8,0.69]
[1729775136377,0.39562,2529.9,2529.8,1.08562]
[1729775136577,0.39562,2529.9,2529.8,0.69]
[1729775137366,0.39562,2529.8,2529.7,3.2078]
[1729775142932,0.39563,2529.7,2529.6,0.7103]
[1729775143079,0.39563,2529.7,2529.6,4.0418041]
[1729775144988,0.7035,2530.0,2529.6,7.74562873]
[1729775145192,0.39563,2529.8,2529.7,0.5193241]
[1729775145398,0.39563,2529.8,2529.7,3.7271241]
[1729775145587,0.7035,2530.0,2529.7,3.3315041]
[1729775145891,0.39562,2529.8,2529.7,3.60343]
[1729775146091,0.39562,2529.8,2529.7,3.72712979]
[1729775147192,0.3956,2530.0,2529.9,0.3956]
[1729775147604,3.2078,2530.8,2529.9,7.7785853]
[1729775147891,0.39552,2530.5,2530.4,3.60332]
[1729775148096,0.39552,2530.5,2530.4,3.72698475]
[1729775148295,0.9887,2530.8,2530.5,0.3955]
[1729775148296,0.39551,2530.6,2530.5,0.3955]
[1729775148498,0.39551,2530.6,2530.5,1.4437]
[1729775148787,0.39551,2530.6,2530.5,1.83921]
[1729775148995,0.39551,2530.6,2530.5,1.4437]
[1729775149584,0.9887,2530.8,2530.4,3.2078]
[1729775149790,1.4341,2531.0,2530.4,3.2078]
[1729775150093,0.39551,2530.6,2530.5,0.3955]
[1729775150499,0.39551,2530.5,2530.4,3.60332]
[1729775150689,0.39551,2530.5,2530.4,3.72698438]
[1729775151585,0.39551,2530.5,2530.4,3.72699438]
[1729775153290,1.71123,2530.9,2530.4,5.92416563]
[1729775153592,0.39551,2530.5,2530.4,5.92416563]
[1729775153892,0.39551,2530.5,2530.4,3.33146341]
[1729775154095,0.39554,2530.3,2530.2,1.4567]
[1729775154300,0.39554,2530.3,2530.2,1.58037398]
[1729775154487,0.39554,2530.3,2530.2,1.4567]
[1729775155093,0.39554,2530.3,2530.2,1.58037609]
[1729775155991,0.39554,2530.3,2530.2,1.4567]
[1729775156197,0.39554,2530.3,2530.2,1.58037802]
[1729775157495,0.39554,2530.3,2530.2,1.97593802]
[1729775157895,0.39554,2530.3,2530.2,1.58037802]
[1729775160394,0.39554,2530.3,2530.2,1.97593802]
[1729775160594,0.39554,2530.3,2530.2,1.58037802]
[1729775160795,0.39554,2530.3,2530.2,1.4567]
[1729775161098,0.39554,2530.3,2530.2,1.58037981]
[1729775161698,0.39554,2530.3,2530.2,1.97593981]
[1729775161893,0.39554,2530.3,2530.2,2.6148446]
[1729775162099,0.39554,2530.3,2530.2,3.0104046]
[1729775162295,0.39554,2530.3,2530.2,2.6148446]
[1729775162498,0.39554,2530.3,2530.2,6.5668446]
[1729775162700,0.39552,2530.5,2530.4,0.39552]
[1729775162902,2.40654,2530.7,2530.4,3.62827712]
[1729775162903,0.7327,2530.7,2530.4,3.62827712]
[1729775163098,0.39551,2530.5,2530.4,3.90011731]
[1729775163405,0.39551,2530.5,2530.4,5.38781541]
[1729775163611,0.39551,2530.5,2530.4,2.7203001]
[1729775163804,0.39551,2530.5,2530.4,1.15860885]
[1729775164102,0.39551,2530.5,2530.4,1.15860899]
[1729775164303,1.38425,2530.6,2530.4,0.12367273]
[1729775164502,0.39553,2530.4,2530.3,3.2078]
[1729775164698,0.39553,2530.4,2530.3,3.33147471]
[1729775164896,0.39553,2530.4,2530.3,4.36641793]
[1729775165297,0.39553,2530.4,2530.3,4.61677418]
[1729775165807,0.39553,2530.4,2530.3,5.01231418]
[1729775166107,0.39553,2530.4,2530.3,6.57384219]
[1729775166308,0.39553,2530.4,2530.3,6.17830219]
[1729775166504,0.39553,2530.4,2530.3,6.17829115]
[1729775166700,0.39553,2530.4,2530.3,4.61677418]
[1729775167209,0.39553,2530.4,2530.3,4.36641793]
[1729775168896,0.39553,2530.4,2530.3,1.15861793]
[1729775169502,0.39553,2530.4,2530.3,4.36641793]
[1729775169702,0.98875,2530.6,2530.2,1.70262977]
[1729775169908,1.76644,2530.3,2530.2,1.70262977]
[1729775170299,1.76644,2530.3,2530.2,1.82630988]
[1729775170499,1.76644,2530.3,2530.2,1.70262977]
[1729775171206,1.76644,2530.3,2530.2,1.82630867]
[1729775171405,1.76644,2530.3,2530.2,1.70262977]
[1729775171605,1.76644,2530.3,2530.0,7.39669731]
[1729775171606,0.39557,2530.1,2530.0,6.71239731]
[1729775171812,0.39557,2530.1,2530.0,4.36642813]
[1729775172000,0.3956,2529.9,2529.8,1.03494322]
[1729775172310,0.3956,2529.9,2529.8,0.12369858]
[1729775174402,0.98893,2530.2,2529.8,0.12369665]
[1729775174607,0.98893,2530.2,2529.7,5.64544322]
[1729775174608,0.39559,2530.0,2529.9,0.12369618]
[1729775175306,0.98894,2530.1,2529.7,8.51072731]
[1729775175307,0.39562,2529.8,2529.7,8.51072731]
[1729775175513,0.39562,2529.8,2529.7,8.63442253]
[1729775175706,0.39562,2529.8,2529.7,8.23879253]
[1729775175906,0.39562,2529.8,2529.7,12.58722253]
[1729775176107,0.39562,2529.8,2529.7,12.19159253]
[1729775176308,0.98891,2530.2,2529.7,12.19159253]
[1729775176511,0.39561,2529.9,2529.8,0.51930522]
[1729775176908,0.39561,2529.9,2529.8,0.12369522]
[1729775177413,0.39561,2529.9,2529.8,0.51931522]
[1729775177812,0.39561,2529.9,2529.8,1.55425844]
[1729775178010,0.39561,2529.9,2529.8,0.51931522]
[1729775178309,0.39561,2529.9,2529.8,1.15863601]
[1729775178310,0.3956,2529.9,2529.8,1.15863601]
[1729775178716,0.3956,2529.9,2529.8,0.12369279]
[1729775178912,0.3956,2529.9,2529.8,1.15863601]
[1729775179120,0.3956,2529.9,2529.8,1.55425601]
[1729775179414,0.3956,2530.0,2529.9,0.3956]
[1729775179716,0.3956,2530.0,2529.9,1.20539279]
[1729775179916,0.19601071,2530.0,2529.9,5.79753601]
[1729775180116,0.9889,2530.2,2529.9,7.35966088]
[1729775180319,0.39557,2530.1,2530.0,4.36643601]
[1729775180524,0.39557,2530.1,2530.0,3.33149279]
[1729775181821,0.39557,2530.1,2530.0,4.36643601]
[1729775182007,0.39557,2530.1,2530.0,4.24274322]
[1729775182217,0.39557,2530.1,2530.0,8.79304582]
[1729775182514,0.39556,2530.2,2530.1,0.39557]
[1729775182713,0.39556,2530.2,2530.1,1.55453737]
[1729775182920,0.39556,2530.2,2530.1,2.29133737]
[1729775183114,0.39556,2530.2,2530.1,1.89576737]
[1729775183322,0.39556,2530.2,2530.1,2.29133737]
[1729775184717,0.39556,2530.2,2530.1,3.85292578]
[1729775185225,0.39556,2530.2,2530.1,2.29133737]
[1729775185614,0.39556,2530.2,2530.1,7.06086396]
[1729775185815,0.39556,2530.2,2530.1,5.75344603]
[1729775186021,0.39556,2530.2,2530.1,7.31517358]
[1729775186314,0.39556,2530.2,2530.1,6.79591709]
[1729775186522,0.39556,2530.2,2530.1,6.91976273]
[1729775186916,0.39556,2530.2,2530.1,5.35786854]
[1729775187815,0.39556,2530.2,2530.1,7.51339799]
[1729775188020,0.39556,2530.2,2530.1,7.51339713]
[1729775188219,0.39556,2530.2,2530.1,7.51339841]
[1729775188424,0.39556,2530.2,2530.1,5.95132889]
[1729775189018,0.39556,2530.2,2530.1,8.64805913]
[1729775189322,0.39556,2530.2,2530.1,8.64805523]
[1729775189529,0.98881,2530.5,2530.2,0.39554]
[1729775189530,0.39555,2530.3,2530.2,0.39554]
[1729775189819,0.39555,2530.3,2530.2,3.63268724]
[1729775190029,0.39555,2530.3,2530.2,1.87259556]
[1729775190217,0.39555,2530.3,2530.2,2.07048071]
[1729775191822,0.39555,2530.3,2530.2,2.46604071]
[1729775192024,0.39555,2530.3,2530.2,4.02876135]
[1729775192221,0.39555,2530.3,2530.2,4.64713357]
[1729775192428,0.39555,2530.3,2530.2,3.61121183]
[1729775192626,0.39555,2530.3,2530.2,5.16262619]
[1729775192924,0.39555,2530.3,2530.2,3.21565183]
[1729775193125,0.39555,2530.3,2530.2,2.07081068]
[1729775196423,0.39555,2530.3,2530.2,2.92094588]
[1729775196627,0.39555,2530.3,2530.2,1.35781068]
[1729775197328,4.34755,2530.3,2530.2,0.32155897]
[1729775198826,3.952,2530.3,2530.1,1.29056037]
[1729775199025,1.76436,2530.2,2530.1,1.29056037]
[1729775199227,1.76436,2530.2,2530.1,0.25430866]
[1729775199524,1.3688,2530.2,2530.0,1.55141436]
[1729775199725,1.76436,2530.2,2530.1,1.03681878]
[1729775199927,0.39557,2530.1,2530.0,1.03683685]
[1729775200224,2.35772,2530.2,2529.9,1.28205824]
[1729775200418,0.39559,2530.0,2529.9,1.28205824]
[1729775201436,0.39559,2530.0,2529.9,1.03683008]
[1729775202322,4.34839,2530.0,2529.9,1.03683008]
[1729775202528,0.3956,2529.9,2529.8,4.24463008]
[1729775202733,0.3956,2529.9,2529.8,3.2078]
[1729775203119,0.39562,2529.8,2529.7,1.03683008]
[1729775203324,0.39562,2529.8,2529.5,4.50129896]
[1729775203325,5.316,2529.8,2529.5,4.50129896]
[1729775203534,0.39565,2529.6,2529.5,3.46446888]
[1729775203727,0.39565,2529.6,2529.5,4.50129896]
[1729775203927,0.39565,2529.6,2529.5,4.82296227]
[1729775204232,0.39565,2529.6,2529.5,4.62501562]
[1729775204729,0.39565,2529.6,2529.5,3.58818554]
[1729775205430,0.39565,2529.6,2529.5,4.62501562]
[1729775205628,0.39565,2529.6,2529.5,3.58818554]
[1729775206330,0.39565,2529.6,2529.5,3.46446888]
[1729775206519,0.39565,2529.6,2529.5,3.58818292]
[1729775211734,0.39565,2529.6,2529.5,0.38038292]
[1729775212240,0.39565,2529.6,2529.5,1.52062096]
[1729775212640,0.989,2530.0,2529.5,1.52062096]
[1729775212641,5.18574,2530.1,2529.5,5.47422096]
[1729775212935,0.39565,2529.7,2529.6,2.24778412]
[1729775213934,0.39565,2529.7,2529.6,3.38801058]
[1729775214136,0.39565,2529.7,2529.6,4.94964308]
[1729775214332,0.39565,2529.7,2529.6,4.11073365]
[1729775214542,0.98898,2530.0,2529.6,5.26650801]
[1729775214744,0.39559,2530.0,2529.9,4.34803804]
[1729775217036,0.39559,2530.0,2529.9,1.14023804]
[1729775217234,0.39559,2530.0,2529.9,1.53583804]
[1729775217432,0.7155,2530.3,2529.9,8.42453429]
[1729775217739,3.2078,2530.7,2530.6,0.39548]
[1729775217740,0.3955,2530.7,2530.6,0.39548]
[1729775217936,0.3955,2530.7,2530.6,4.86717849]
[1729775218147,0.39547,2530.8,2530.7,0.39546]
[1729775218334,0.39547,2530.8,2530.7,2.69483417]
[1729775218836,2.1492,2531.3,2530.7,2.29937417]
[1729775219043,2.54458,2531.3,2531.2,1.14023804]
[1729775219233,0.3954,2531.2,2531.1,1.14023804]
[1729775219437,41.1954,2531.2,2531.1,1.14023804]
[1729775219635,45.1458,2531.2,2531.1,1.14023804]
[1729775220240,44.7504,2531.2,2530.8,0.665]
[1729775220445,0.39545,2530.9,2530.8,1.06045]
[1729775220943,0.39545,2530.9,2530.8,1.18410093]
[1729775221244,0.39545,2530.9,2530.8,1.06045]
[1729775222244,41.78854,2531.2,2530.8,1.06045]
[1729775222245,40.8,2531.2,2530.8,4.6162]
[1729775222443,0.3954,2531.2,2531.1,2.86449614]
[1729775222646,0.3954,2531.2,2531.1,2.46908614]
[1729775223150,0.3954,2531.2,2531.1,2.86450614]
[1729775223442,3.2078,2531.4,2531.1,6.41948614]
[1729775223647,0.3954,2531.3,2531.2,1.79319]
[1729775223845,0.3954,2531.3,2531.2,2.47089]
[1729775224236,3.9037,2531.8,2531.2,9.2337]
[1729775224437,0.39533,2531.7,2531.6,2.86440614]
[1729775224645,4.19594,2532.2,2531.6,2.46908614]
[1729775224946,40.8,2532.0,2531.6,2.46908614]
[1729775225150,0.39531,2531.8,2531.7,1.04952]
[1729775225648,0.39531,2531.8,2531.7,1.74082]
[1729775228349,40.8,2532.1,2531.7,1.3455]
[1729775228547,0.39529,2531.9,2531.8,6.07218614]
[1729775228749,0.39529,2531.9,2531.8,5.67688614]
[1729775229552,0.39529,2531.9,2531.8,6.07219614]
[1729775229745,0.39529,2532.0,2531.9,0.39529]
[1729775229946,0.39525,2532.2,2532.1,0.39525]
[1729775230256,0.39521,2532.4,2532.3,2.46908614]
[1729775230454,0.39521,2532.4,2532.3,3.56131614]
[1729775230846,0.98784,2533.0,2532.5,0.39519]
[1729775231043,0.39517,2532.7,2532.6,3.2078]
[1729775231250,0.39521,2532.4,2532.3,3.16608614]
[1729775231446,0.39521,2532.4,2532.3,3.56131614]
[1729775231754,0.39521,2532.4,2532.3,3.16608614]
[1729775232946,0.39523,2532.3,2532.2,3.2078]
[1729775233145,0.39523,2532.3,2531.9,2.46908614]
[1729775233146,0.39528,2532.0,2531.9,2.46908614]
[1729775234447,0.39529,2531.9,2531.8,3.2078]
[1729775235253,0.39529,2531.9,2531.8,5.67688614]
[1729775235848,0.39529,2531.9,2531.8,6.07219614]
[1729775236654,0.39529,2531.9,2531.8,5.67688614]
[1729775237250,0.39529,2531.9,2531.8,6.07219614]
[1729775237458,0.39529,2532.0,2531.8,6.07219614]
[1729775237750,0.39529,2532.0,2531.9,2.86437614]
[1729775237950,0.39529,2532.0,2531.9,2.46908614]
[1729775238153,0.39527,2532.1,2531.9,6.41868614]
[1729775238352,0.39527,2532.1,2532.0,3.17668614]
[1729775238548,0.7069,2532.3,2532.2,0.39524]
[1729775238549,0.39523,2532.3,2532.2,0.39524]
[1729775238852,0.6905,2532.6,2532.2,5.67688614]
[1729775239052,40.8,2532.9,2532.5,5.67688614]
[1729775239254,0.39517,2532.7,2532.6,0.7076]
[1729775239853,40.8,2532.9,2532.5,5.67688614]
[1729775240154,0.39518,2532.6,2532.5,5.67688614]
[1729775241245,0.39518,2532.6,2532.5,3.2078]
[1729775241558,0.39523,2532.3,2532.2,3.2078]
[1729775242461,0.39524,2532.2,2532.1,2.46908614]
[1729775248060,0.98805,2532.4,2532.1,2.46908614]
[1729775248262,0.39524,2532.2,2532.1,2.46908614]
[1729775248663,0.39528,2532.0,2531.6,6.07221614]
[1729775248959,0.39528,2532.0,2531.6,5.92337286]
[1729775248960,0.39532,2531.7,2531.6,5.92337286]
[1729775249167,0.39532,2531.7,2531.6,5.67688614]
[1729775249371,0.39532,2531.7,2531.6,3.2078]
[1729775249563,4.34492,2531.7,2531.6,3.2078]
[1729775250667,45.14492,2531.7,2531.6,3.2078]
[1729775251760,45.14492,2531.7,2531.3,3.2078]
[1729775251761,44.7496,2531.7,2531.3,3.2078]
[1729775251973,0.39537,2531.4,2531.3,3.60318]
[1729775252177,0.39537,2531.5,2531.4,2.46908614]
[1729775252773,0.39537,2531.5,2531.4,2.86445614]
[1729775252973,0.39537,2531.5,2531.4,2.46908614]
[1729775255980,0.39537,2531.4,2531.3,3.2078]
[1729775261276,1.07497,2531.4,2531.3,3.2078]
[1729775262886,0.39537,2531.4,2531.3,5.78350869]
[1729775263075,0.39537,2531.4,2531.3,4.23235877]
[1729775263472,0.39537,2531.4,2531.3,4.62773877]
[1729775263780,0.39537,2531.4,2531.3,6.70693963]
[1729775266577,0.39537,2531.4,2531.3,6.18842288]
[1729775267085,0.39537,2531.4,2531.3,4.24069761]
[1729775267277,0.39537,2531.4,2531.3,5.79375879]
[1729775267474,0.39537,2531.4,2531.3,4.63607761]
[1729775267677,0.39537,2531.4,2531.3,6.70795641]
[1729775268184,0.98834,2531.7,2531.3,6.70795641]
[1729775268385,0.39537,2531.4,2531.3,5.15459436]
[1729775268580,0.39537,2531.4,2531.3,9.17728536]
[1729775269673,0.39537,2531.4,2531.3,7.625871]
[1729775270281,0.39537,2531.4,2531.3,8.65920067]
[1729775270683,0.39537,2531.4,2531.3,7.10559581]
[1729775270985,0.7247,2531.9,2531.4,0.39535]
[1729775270986,0.39536,2531.5,2531.4,0.39535]
[1729775271288,0.39536,2531.5,2531.4,1.42867967]
[1729775271477,0.39536,2531.5,2531.4,5.10734751]
[1729775271678,0.39536,2531.5,2531.4,4.07401784]
[1729775272080,0.39536,2531.5,2531.4,4.46938784]
[1729775272580,0.39536,2531.5,2531.4,4.07402011]
[1729775272885,0.39536,2531.5,2531.4,4.46938995]
[1729775273281,0.39536,2531.5,2531.4,4.34577]
[1729775274890,0.39536,2531.5,2531.4,7.55357]
[1729775275191,0.39536,2531.5,2531.4,4.34577]
[1729775275794,0.39536,2531.5,2531.4,7.55357]
[1729775276089,0.39536,2531.5,2531.4,7.1582]
[1729775276287,0.39536,2531.5,2531.4,3.2078]
[1729775276681,0.39536,2531.5,2531.4,3.60317]
[1729775276889,0.39536,2531.5,2531.4,3.2078]
[1729775278181,0.39536,2531.5,2531.4,3.8869]
[1729775278385,0.39536,2531.5,2531.4,5.02612344]
[1729775279384,0.39536,2531.5,2531.4,1.81832344]
[1729775279583,0.39536,2531.5,2531.4,1.13922344]
[1729775280394,0.39538,2531.3,2531.2,0.64430611]
[1729775280892,0.39538,2531.3,2531.2,0.76793471]
[1729775281090,0.39538,2531.3,2531.2,0.64430611]
[1729775281291,0.39538,2531.3,2531.2,0.76793259]
[1729775281692,0.39538,2531.3,2531.2,0.76793208]
[1729775282286,0.25163,2531.3,2531.2,3.97573208]
[1729775282485,0.25163,2531.3,2531.2,5.00906175]
[1729775282896,0.25163,2531.3,2531.2,6.56386077]
[1729775283095,0.25163,2531.3,2531.2,6.36626293]
[1729775283298,0.25163,2531.3,2531.2,5.00907175]
[1729775284195,0.25163,2531.3,2531.2,4.61367175]
[1729775284588,0.25163,2531.3,2531.2,3.58034208]
[1729775284783,0.25163,2531.3,2531.2,4.27894208]
[1729775285691,0.25163,2531.3,2531.2,3.58034713]
[1729775285993,0.25163,2531.3,2531.1,3.50192097]
[1729775285994,4.93889,2531.3,2530.9,6.70972097]
[1729775286290,0.39543,2531.0,2530.9,6.70972097]
[1729775286596,0.39543,2531.0,2530.9,6.83336091]
[1729775287298,0.39543,2531.0,2530.9,8.39000578]
[1729775287891,0.39543,2531.0,2530.9,8.63715295]
[1729775288199,0.39543,2531.0,2530.9,8.83498135]
[1729775288387,0.39543,2531.0,2530.9,9.35306604]
[1729775288593,0.39543,2531.0,2530.9,8.63919309]
[1729775288787,0.39543,2531.0,2530.9,8.51555315]
[1729775288986,0.39543,2531.0,2530.9,5.43139756]
[1729775289183,0.39543,2531.0,2530.9,8.83702858]
[1729775289399,0.39543,2531.0,2530.9,9.74852313]
[1729775289893,0.39543,2531.0,2530.9,10.36672761]
[1729775290294,0.39543,2531.0,2530.9,9.97127761]
[1729775290490,0.39543,2531.0,2530.9,10.36726297]
[1729775290898,0.39543,2531.0,2530.9,9.97181297]
[1729775291091,0.39543,2531.0,2530.9,9.97182326]
[1729775291491,0.39543,2531.0,2530.9,9.9718208]
[1729775291692,0.39543,2531.0,2530.9,10.3672708]
[1729775292397,0.39543,2531.0,2530.9,8.49438347]
[1729775292600,0.39543,2531.0,2530.9,8.81585294]
[1729775292802,0.39543,2531.0,2530.9,8.42040294]
[1729775292990,0.39543,2531.0,2530.9,9.97448197]
[1729775293189,0.39543,2531.0,2530.9,9.97449931]
[1729775294796,0.39543,2531.0,2530.9,9.97452355]
[1729775295296,0.39543,2531.0,2530.9,9.97581604]
[1729775295799,0.39543,2531.0,2530.9,10.37126604]
[1729775295995,0.39543,2531.0,2530.9,10.4902895]
[1729775296302,0.39543,2531.0,2530.9,10.88574181]
[1729775296695,0.39543,2531.0,2530.9,10.88573754]
[1729775297099,0.39543,2531.0,2530.9,10.49028754]
[1729775297396,0.39543,2531.0,2530.9,10.88573754]
[1729775297792,0.39543,2531.0,2530.9,10.49028754]
[1729775298001,0.39543,2531.0,2530.9,3.43462581]
[1729775298192,0.39543,2531.0,2530.9,1.35798732]
[1729775298397,1.06173,2531.0,2530.9,1.16014504]
[1729775299406,1.06173,2531.0,2530.9,1.35798774]
[1729775299705,1.06173,2531.0,2530.9,1.3579866]
[1729775299893,1.06173,2531.0,2530.9,1.03650369]
[1729775300098,1.06173,2531.0,2530.9,1.16015695]
[1729775300296,1.06173,2531.0,2530.9,2.29976488]
[1729775300901,1.06173,2531.0,2530.9,3.85786533]
[1729775301113,1.06173,2531.0,2530.9,1.99636783]